[Event "Romanian Superleague 2022"]
[Site "Oradea"]
[Date "2022.09.27"]
[Round "7.1"]
[White "Sumets, Andrey"]
[Black "Tarlev, Konstantin"]
[Result "1-0"]
[ECO "D38"]
[WhiteElo "2513"]
[BlackElo "2576"]
[Annotator "TA"]
[PlyCount "72"]
[EventDate "2022.09.21"]
[EventType "team-tourn"]
[EventCountry "ROU"]
[SourceTitle "playchess.com"]
[Source "ChessBase"]
[SourceQuality "1"]
[TimeControl "40/5400+30:1800+30"]

{[%evp 17,72,15,18,0,0,0,15,20,29,29,67,84,101,87,104,99,115,104,91,95,131,129,152,115,119,110,106,101,100,94,88,98,86,96,110,103,180,179,200,196,197,208,203,207,195,192,220,196,232,234,247,220,255,263,255,246,234]} 1. d4 {[%emt 0:00:02] Metz Alekhine/Primel,D} Nf6 {[%emt 0:04:29]} 2. c4 {[%emt 0:00:05]} e6 {[%emt 0:00:03]} 3. Nf3 {[%emt 0:00:03]} d5 {[%emt 0:00:04]} 4. Nc3 {[%emt 0:00:02]} Bb4 {[%emt 0:00:13]} 5. cxd5 {[%emt 0:13:57]} exd5 {[%emt 0:01:22]} 6. Bg5 {[%emt 0:01:24]} h6 {[%emt 0:00:13]} 7. Bxf6 {[%emt 0:02:08]} Qxf6 {[%emt 0:00:06]} 8. Qa4+ {[%emt 0:00:00] seems to push 8.Qb3 aside.} Nc6 {[%emt 0:00:05][%cal Bb8c6,Bc6a5,Ba5b3][%mdl 32]} 9. e3 {[%emt 0:00:00]} O-O {[%emt 0:00:08]} 10. a3 {[%emt 0:02:12] D38: Queen's Gambit Declined: Ragozin Defence (4 Nf3 Bb4).} Bxc3+ {[%emt 0:00:26]} 11. bxc3 {[%emt 0:00:06]} a6 {[%emt 0:13:25]} 12. Be2 {[%emt 0:01:42] The position is equal.} b5 {[%emt 0:00:28]} 13. Qb3 {[%emt 0:01:36] [#]} (13. Bxb5 axb5 $1 14. Qxa8 Bh3 $1 $17 {[%mdl 512]}) 13... Na5 $146 {[%emt 0:47:39]} ({Predecessor:} 13... Be6 14. a4 Na5 15. Qb4 Nc4 16. axb5 axb5 17. O-O c6 18. Bxc4 bxc4 19. Ne5 Rxa1 20. Rxa1 {½-½ (27) Eingorn,V (2569)-Sanikidze,T (2549) Metz 2012 EXT 2013 [Metz Alekhine/Primel,D]}) 14. Qxd5 {[%emt 0:08:19]} Be6 {[%emt 0:00:12]} 15. Qe5 {[%emt 0:12:07]} Qd8 {[%emt 0:00:06]} 16. O-O {[%emt 0:01:09]} Re8 {[%emt 0:00:22]} 17. Qf4 {[%emt 0:01:06] White is more active.} Nb3 {[%emt 0:07:17]} 18. Rad1 {[%emt 0:02:41][%cal Od4d5] d5! is the strong threat.} c6 {[%emt 0:07:48]} 19. Ne5 {[%emt 0:19:20]} Qd6 {[%emt 0:01:06]} 20. Qe4 {[%emt 0:04:21]} Bd5 {[%emt 0:01:15]} 21. Qc2 {[%emt 0:00:29] Threatens to win with c4.} Na5 {[%emt 0:01:03]} 22. c4 {[%emt 0:06:55]} Nxc4 {[%emt 0:01:38]} 23. Nxc4 {[%emt 0:00:09]} bxc4 {[%emt 0:00:25]} 24. Bxc4 {[%emt 0:00:05]} Qxa3 {[%emt 0:00:51]} 25. Ra1 {[%emt 0:00:09]} Qd6 {[%emt 0:01:54]} 26. Bxa6 {[%emt 0:01:00][%cal Bc4a6,Ba6e2,Be2f3][%mdl 32]} c5 {[%emt 0:04:54] [#]} (26... g6 $16 {was called for.} 27. Bd3 Reb8) 27. Qxc5 $1 $18 {[%emt 0:06:03]} Qe6 {[%emt 0:00:04] [#]} (27... Qxc5 28. dxc5) 28. Be2 $1 {[%emt 0:03:28]} ({Don't take} 28. Bd3 $6 Bxg2 29. Bf5 (29. Kxg2 Qg4+ 30. Kh1 Qf3+ 31. Kg1 Qg4+ 32. Kh1 Qf3+ 33. Kg1 Qg4+ 34. Kh1 $11) 29... Qd5 $16) 28... Rac8 {[%emt 0:00:10]} 29. Qb5 {[%emt 0:00:50]} Rb8 {[%emt 0:00:02]} 30. Qd3 {[%emt 0:02:49]} Rb3 {[%emt 0:00:48]} 31. Qd1 {[%emt 0:00:47]} Reb8 {[%emt 0:03:30]} 32. Bf3 {[%emt 0:01:18]} Bc4 {[%emt 0:00:02]} 33. Re1 {[%emt 0:00:07]} Rb2 {[%emt 0:00:01]} 34. Qc1 {[%emt 0:04:06]} Bd5 {[%emt 0:03:48] Hoping for ...Bxf3.} 35. e4 {[%emt 0:00:33]} Ba2 {[%emt 0:00:01]} 36. Qc7 {[%emt 0:03:04]} Rc8 {[%emt 0:00:19] Weighted Error Value: White=0.05 (flawless) /Black=0.16 (very precise)} 1-0

[Event "Romanian Superleague 2022"]
[Site "Oradea"]
[Date "2022.09.27"]
[Round "7.2"]
[White "Ionescu, Constantin"]
[Black "Cioara, Andrei-Nestor"]
[Result "1/2-1/2"]
[ECO "E12"]
[WhiteElo "2415"]
[BlackElo "2407"]
[Annotator "TA"]
[PlyCount "34"]
[EventDate "2022.09.21"]
[EventType "team-tourn"]
[EventCountry "ROU"]
[SourceTitle "playchess.com"]
[Source "ChessBase"]
[SourceQuality "1"]
[TimeControl "40/5400+30:1800+30"]

{[%evp 23,34,0,30,25,40,24,30,23,31,16,21,12,29]} 1. d4 {[%emt 0:00:06]} Nf6 {[%emt 0:00:05]} 2. Nf3 {[%emt 0:00:15]} e6 {[%emt 0:00:11]} 3. c4 {[%emt 0:00:30]} b6 {[%emt 0:00:04]} 4. a3 {[%emt 0:01:33]} Bb7 {[%emt 0:00:15]} 5. Nc3 {[%emt 0:00:36]} d5 {[%emt 0:00:02]} 6. cxd5 {[%emt 0:00:24]} Nxd5 {[%emt 0:00:04]} 7. Bd2 {[%emt 0:00:15]} Be7 {[%emt 0:00:37]} 8. Qc2 {[%emt 0:00:13]} O-O {[%emt 0:02:05]} 9. e4 {[%emt 0:00:13]} Nxc3 {[%emt 0:00:03]} 10. Bxc3 {[%emt 0:00:10]} Nd7 {[%emt 0:00:03]} 11. Rd1 {[%emt 0:08:39]} Qc8 {[%emt 0:08:40]} 12. Bd3 {[%emt 0:03:02]} Ba6 {[%emt 0:00:06]} 13. O-O {[%emt 0:00:34] E12: Queen's Indian: Unusual White 4th moves, 4 a3, 4 Nc3 Bb7 5 a3 and 4 Nc3 Bb7 .} Bxd3 {[%emt 0:07:21]} 14. Rxd3 {[%emt 0:00:55]} Qb7 {[%emt 0:00:28]} 15. Re1 {[%emt 0:00:27]} Rfe8 {[%emt 0:01:58] [#]} 16. h3 $146 {[%emt 0:05:39]} ({Predecessor:} 16. Nd2 c5 17. d5 exd5 18. exd5 Bf6 19. Ne4 Bxc3 20. Qxc3 Qc7 21. Rde3 Kf8 22. d6 {1-0 (29) Vitiugov,N (2519)-Rodshtein,M (2459) Belfort 2005}) 16... Rad8 {[%emt 0:01:47]} 17. Nd2 {[%emt 0:10:01]} c5 {[%emt 0:12:19] Black did not feel at home in the position after the opening.  Weighted Error Value: White=0.07 (flawless) /Black=0.09 (flawless)} 1/2-1/2

[Event "Romanian Superleague 2022"]
[Site "Oradea"]
[Date "2022.09.27"]
[Round "7.3"]
[White "Stepanencu, Nicodim-Cosmin"]
[Black "Soltanici, Ruslan"]
[Result "0-1"]
[ECO "B51"]
[WhiteElo "2289"]
[BlackElo "2333"]
[Annotator "TA"]
[PlyCount "94"]
[EventDate "2022.09.21"]
[EventType "team-tourn"]
[EventCountry "ROU"]
[SourceTitle "playchess.com"]
[Source "ChessBase"]
[SourceQuality "1"]
[TimeControl "40/5400+30:1800+30"]

{[%evp 10,94,34,32,37,33,52,52,53,60,59,47,56,52,49,43,41,58,77,79,80,70,90,78,79,77,68,75,76,65,86,67,70,56,33,43,86,27,61,40,46,49,51,17,33,17,16,12,10,10,10,13,9,0,241,-9,0,-85,-71,-402,-403,-397,-382,-374,-364,-424,-419,-400,-254,-477,-367,-394,-385,-511,-507,-506,-498,-635,-595,-875,-863,-989,-989,-6211,-6187,-2257,-1962]} 1. e4 {[%emt 0:00:02]} c5 {[%emt 0:00:16]} 2. Nf3 {[%emt 0:00:04]} Nc6 {[%emt 0:00:14]} 3. Bb5 {[%emt 0:00:53]} d6 {[%emt 0:04:33]} 4. O-O {[%emt 0:00:14]} Bd7 {[%emt 0:00:32]} 5. Re1 {[%emt 0:00:07]} Nf6 {[%emt 0:02:03]} 6. c3 {[%emt 0:01:04]} a6 {[%emt 0:00:16] B51: Sicilian: Moscow Variation (3 Bb5+) without 3...Bd7.} 7. Bc4 {[%emt 0:02:53]} b5 {[%emt 0:10:02]} 8. Bf1 {[%emt 0:00:39]} e5 {[%emt 0:09:15] White is slightly better.} 9. a4 {[%emt 0:07:18]} b4 {[%emt 0:04:17]} 10. d4 {[%emt 0:22:13]} cxd4 {[%emt 0:00:38]} 11. cxd4 {[%emt 0:00:01]} Be7 {[%emt 0:00:37] [#]} 12. dxe5 $146 {[%emt 0:16:02]} ({Predecessor:} 12. Nbd2 exd4 13. Nb3 O-O 14. Nfxd4 d5 15. exd5 Nxd5 16. Qf3 Nxd4 17. Nxd4 Nf6 18. Nc6 Bxc6 19. Qxc6 {½-½ (76) Cornette,M (2591)-Pap,M (2488) Germany 2016}) 12... dxe5 {[%emt 0:01:13]} 13. Bg5 {[%emt 0:00:10]} Ng4 {[%emt 0:11:25]} 14. Bxe7 {[%emt 0:01:07]} Qxe7 {[%emt 0:00:07]} 15. Nbd2 {[%emt 0:03:05]} O-O {[%emt 0:13:38]} 16. h3 {[%emt 0:06:28]} Nf6 {[%emt 0:00:47]} 17. Nc4 {[%emt 0:00:01] Prevents Na5.} Rfd8 {[%emt 0:07:22][%cal Od7h3]} 18. Qc1 {[%emt 0:01:16]} Rab8 {[%emt 0:05:50] Prevents Nb6.} 19. a5 {[%emt 0:01:50]} Rb5 {[%emt 0:04:08]} 20. Qe3 {[%emt 0:13:20]} Be8 {[%emt 0:09:55]} 21. Red1 {[%emt 0:07:43]} Rxd1 22. Rxd1 {[%emt 0:00:01]} Qc5 {[%emt 0:09:04]} 23. Qe1 {[%emt 0:11:25]} (23. Nd6 $16 Qxe3 24. fxe3) 23... Rb8 {[%emt 0:02:20]} 24. Rc1 {[%emt 0:00:01][%cal Oc4e5] Black must now prevent Ncxe5!} Nxa5 {[%emt 0:00:22]} 25. Ncxe5 {[%emt 0:00:10]} Qb6 {[%emt 0:00:44]} 26. Rd1 {[%emt 0:02:41][%cal Bc1d1,Bd1d4,Bd4d6][%mdl 32]} h6 {[%emt 0:01:17]} 27. Rd4 {[%emt 0:02:39]} Nb3 {[%emt 0:00:19]} 28. Nc4 {[%emt 0:00:31]} Qe6 {[%emt 0:01:06]} 29. Rd6 {[%emt 0:00:29]} Qxe4 {[%emt 0:00:14]} 30. Qd1 {[%emt 0:00:31]} Nc5 {[%emt 0:00:36]} 31. Nfe5 {[%emt 0:00:27][%cal Od6f6] Threatens to win with Rxf6!} Qb7 $2 {[%emt 0:01:52] [#]} (31... Bb5 $11) 32. Qd4 $2 {[%emt 0:00:33]} (32. Rxf6 $1 $18 {[%mdl 512]} gxf6 33. Ng4) 32... Ne6 {[%emt 0:00:18]} 33. Qh4 {[%emt 0:00:30]} (33. Qe3 $11) 33... Bb5 $17 {[%emt 0:00:34]} 34. Qg3 $2 {[%emt 0:00:30][%mdl 8192] Loses the game.} (34. Rd1 $17) 34... Ne4 $19 {[%emt 0:00:15]} 35. Qe3 {[%emt 0:00:30] Rb6 is the strong threat.} Nxd6 {[%emt 0:00:48]} 36. Nxd6 {[%emt 0:00:01]} Qd5 {[%emt 0:00:24]} 37. Bxb5 {[%emt 0:01:31]} Qxd6 {[%emt 0:00:44]} ({Not} 37... axb5 $2 38. Nf5 Rb7 39. Ng3 $19) 38. Bc4 {[%emt 0:00:00]} a5 {[%emt 0:00:30] Strongly threatening ...Rc8.} 39. Qe4 $2 {[%emt 0:00:21]} (39. Nxf7 Kxf7 40. Bxe6+ Qxe6 41. Qf4+ Qf6 42. Qxb8) 39... Ng5 {[%emt 0:00:47]} 40. Qf4 {[%emt 0:00:00]} Qf6 {[%emt 0:00:00]} 41. Qe3 {[%emt 0:04:48]} Re8 {[%emt 0:06:49] Black is clearly winning.} 42. f4 {[%emt 0:00:23]} Ne6 {[%emt 0:00:53]} 43. g3 {[%emt 0:00:10]} g5 {[%emt 0:12:06][%cal Rg5f4]} 44. Ng4 {[%emt 0:08:14]} Qxb2 {[%emt 0:00:49]} 45. Nxh6+ {[%emt 0:00:42]} Kf8 {[%emt 0:00:31]} 46. Bxe6 {[%emt 0:04:43]} Qb1+ {[%emt 0:00:24]} 47. Kf2 {[%emt 0:00:21]} Qc2+ {[%emt 0:00:09] Weighted Error Value: White=0.67/Black=0.20 (precise)} 0-1

[Event "Romanian Superleague 2022"]
[Site "Oradea"]
[Date "2022.09.27"]
[Round "7.4"]
[White "Cosma, Ioan"]
[Black "Vajda, Albert"]
[Result "1-0"]
[ECO "E11"]
[WhiteElo "2367"]
[BlackElo "2305"]
[Annotator "TA"]
[PlyCount "51"]
[EventDate "2022.09.21"]
[EventType "team-tourn"]
[EventCountry "ROU"]
[SourceTitle "playchess.com"]
[Source "ChessBase"]
[SourceQuality "1"]
[TimeControl "40/5400+30:1800+30"]

{[%evp 17,51,33,50,35,37,37,75,74,78,77,91,63,77,70,106,90,75,80,95,87,90,91,147,144,166,106,117,119,132,126,135,106,154,153,229,226]} 1. Nf3 {[%emt 0:03:52]} Nf6 {[%emt 0:00:35]} 2. c4 {[%emt 0:00:16]} e6 {[%emt 0:00:27]} 3. g3 {[%emt 0:00:21]} d5 {[%emt 0:01:47]} 4. d4 {[%emt 0:00:39]} Bb4+ {[%emt 0:01:23]} 5. Bd2 {[%emt 0:00:14]} Bxd2+ {[%emt 0:02:29]} 6. Nbxd2 {[%emt 0:00:19]} O-O {[%emt 0:00:47]} 7. Bg2 {[%emt 0:00:11]} Nbd7 {[%emt 0:01:29]} 8. O-O {[%emt 0:00:42]} c6 {[%emt 0:06:14]} 9. Qc2 {[%emt 0:01:13]} Re8 {[%emt 0:02:07]} 10. e4 {[%emt 0:01:20] E11: Bogo-Indian.} dxe4 {[%emt 0:00:39]} 11. Nxe4 {[%emt 0:00:06]} Qc7 {[%emt 0:06:01] [#] Inhibits Nd6.} 12. Rfe1 $146 {[%emt 0:07:10] White is better.} ({Predecessor:} 12. Rad1 c5 13. Nxc5 Nxc5 14. dxc5 Qxc5 15. Rfe1 Bd7 16. Ne5 Qc7 17. Nxd7 Nxd7 18. b4 {½-½ (53) Mancic,I (2147)-Voss,H (2097) Nordrheinwestfalen 2019}) 12... h6 {[%emt 0:03:43]} 13. Nxf6+ {[%emt 0:08:23]} Nxf6 {[%emt 0:00:08]} 14. c5 {[%emt 0:00:05]} Bd7 {[%emt 0:09:59]} 15. Ne5 {[%emt 0:00:35][%cal Bf3e5,Be5c4,Bc4d6][%mdl 32]} Rad8 {[%emt 0:00:18]} 16. Nc4 {[%emt 0:02:20]} Bc8 {[%emt 0:01:03]} 17. Rad1 {[%emt 0:00:42]} Nd5 {[%emt 0:02:42]} 18. a3 {[%emt 0:00:35]} b6 {[%emt 0:01:48]} 19. Rc1 {[%emt 0:03:17]} b5 {[%emt 0:04:52]} (19... Ne7 $142) 20. Nd6 $16 {[%emt 0:00:29]} Rf8 {[%emt 0:00:32]} 21. Qe4 {[%emt 0:06:37]} (21. Bxd5 $18 exd5 22. Re5) 21... Ne7 {[%emt 0:06:23]} 22. Qe5 {[%emt 0:02:28][%cal Od6f5] [#] Hoping for Nf5!} Rd7 {[%emt 0:01:12]} 23. Be4 $40 {[%emt 0:03:29][%mdl 128] White wants a kill.} Rfd8 {[%emt 0:02:08]} 24. h4 {[%emt 0:03:10] White is much more active.} Rxd6 {[%emt 0:03:51]} ({Black should try} 24... a5) 25. cxd6 {[%emt 0:00:10]} Rxd6 {[%emt 0:00:21]} (25... Qxd6 $16 {was called for.} 26. Qc5 Qxc5 27. dxc5 (27. Rxc5 Bb7 $16) 27... a5) 26. Qxb5 $1 {[%emt 0:01:55] Weighted Error Value: White=0.14 (very precise) /Black=0.26 (precise)} 1-0

[Event "Romanian Superleague 2022"]
[Site "Oradea"]
[Date "2022.09.27"]
[Round "7.5"]
[White "Balla, Tamas-Kristof"]
[Black "Itkis, Boris"]
[Result "1/2-1/2"]
[ECO "A02"]
[WhiteElo "2325"]
[BlackElo "2332"]
[Annotator "TA"]
[PlyCount "41"]
[EventDate "2022.09.21"]
[EventType "team-tourn"]
[EventCountry "ROU"]
[SourceTitle "playchess.com"]
[Source "ChessBase"]
[SourceQuality "1"]
[TimeControl "40/5400+30:1800+30"]

{[%evp 9,41,0,3,0,4,0,0,0,11,6,0,-8,0,-18,-15,-14,-14,-42,-22,-22,-20,-35,-23,-30,-37,-25,-17,-46,-41,-36,-39,-41,-23,-14]} 1. f4 {[%emt 0:00:53]} c5 {[%emt 0:02:10]} 2. b3 {[%emt 0:00:39]} Nc6 {[%emt 0:01:14]} 3. Bb2 {[%emt 0:00:07]} Nf6 {[%emt 0:03:03]} 4. Nf3 {[%emt 0:01:26]} e6 {[%emt 0:00:08]} 5. e3 {[%emt 0:00:11]} b6 {[%emt 0:00:18]} 6. g3 {[%emt 0:00:27] A02: Bird's Opening.} Bb7 {[%emt 0:00:06]} 7. Bg2 {[%emt 0:00:06]} Be7 {[%emt 0:01:22]} 8. O-O {[%emt 0:00:22] The position is equal.} O-O {[%emt 0:00:06]} 9. Qe2 {[%emt 0:00:24]} d5 {[%emt 0:08:46][%cal Bd7d5,Bd5d4][%mdl 32]} 10. d3 {[%emt 0:03:51]} d4 {[%emt 0:10:18]} 11. e4 {[%emt 0:03:11]} b5 {[%emt 0:12:26][%cal Oc5c4] [#]} 12. a4 $146 {[%emt 0:12:56]} ({Predecessor:} 12. Nbd2 Rc8 13. h3 Nd7 14. a4 a6 15. Rfc1 e5 16. f5 Bg5 17. Nxg5 Qxg5 18. Kh2 {1-0 (48) Michna,M (2341)-Kachiani Gersinska,K (2318) Magdeburg 2021}) 12... a6 {[%emt 0:00:38]} 13. h3 {[%emt 0:00:37]} Qc7 {[%emt 0:06:05]} 14. Na3 {[%emt 0:12:39]} Qb6 {[%emt 0:05:45]} 15. g4 {[%emt 0:00:43]} Nb4 {[%emt 0:01:38]} 16. Ne5 {[%emt 0:07:05] Threatens to win with g5.} Rad8 {[%emt 0:44:27]} 17. g5 {[%emt 0:11:51]} Nd7 {[%emt 0:00:00]} 18. Ng4 f5 {[%emt 0:01:00]} 19. gxf6 $1 {[%emt 0:03:39]} Nxf6 {[%emt 0:00:00]} 20. Bc1 Nd7 {[%emt 0:00:00]} 21. Bd2 {[%emt 0:06:48] Weighted Error Value: White=0.08 (flawless) /Black=0.05 (flawless)} 1/2-1/2

[Event "Romanian Superleague 2022"]
[Site "Oradea"]
[Date "2022.09.27"]
[Round "7.6"]
[White "Bulau, Andrei-Cristian"]
[Black "Doncea, Vladimir"]
[Result "1/2-1/2"]
[ECO "E32"]
[WhiteElo "2183"]
[BlackElo "2342"]
[Annotator "TA"]
[PlyCount "67"]
[EventDate "2022.09.21"]
[EventType "team-tourn"]
[EventCountry "ROU"]
[SourceTitle "playchess.com"]
[Source "ChessBase"]
[SourceQuality "1"]
[TimeControl "40/5400+30:1800+30"]

{[%evp 11,67,0,0,8,0,0,0,0,0,0,-2,-2,-2,0,0,-7,12,23,39,29,63,0,0,-4,-13,-10,0,0,-3,-6,22,4,16,0,0,0,48,16,56,58,47,52,57,52,51,53,66,62,59,40,47,0,41,0,43,0,34,0]} 1. d4 {[%emt 0:00:06]} Nf6 {[%emt 0:00:18]} 2. c4 {[%emt 0:00:05]} e6 {[%emt 0:00:16]} 3. Nc3 {[%emt 0:00:05]} Bb4 {[%emt 0:00:30]} 4. Qc2 {[%emt 0:00:13]} O-O {[%emt 0:00:54]} 5. Nf3 {[%emt 0:00:08]} d5 {[%emt 0:02:05]} 6. cxd5 {[%emt 0:00:38]} exd5 {[%emt 0:00:35]} 7. Bf4 {[%emt 0:02:22] E32: Nimzo-Indian: Classical (4 Qc2): 4...0-0.} c5 {[%emt 0:05:10]} 8. dxc5 {[%emt 0:06:35]} Ne4 {[%emt 0:00:24] [#] aiming for ...Bf5.} 9. e3 {[%emt 0:00:44] The position is equal.} Bf5 {[%emt 0:01:35] White must now prevent ...Nxc3.} 10. Bd3 $1 {[%emt 0:01:16]} Nd7 {[%emt 0:02:18][%cal Bb8d7,Bd7c5,Bc5d3][%mdl 32]} 11. c6 {[%emt 0:17:13]} bxc6 {[%emt 0:02:51] Strongly threatening ...Ndc5.} 12. O-O {[%emt 0:00:51][%cal Rc3e4]} Bxc3 {[%emt 0:11:39]} 13. bxc3 {[%emt 0:00:40] [#]} Bg6 $146 {[%emt 0:01:51]} ({Predecessor:} 13... Ndc5 14. Nd4 Bg6 15. Nxc6 Qf6 16. Ne5 Rac8 17. Nxg6 hxg6 18. Rac1 Nxd3 19. Qxd3 Rc5 20. f3 Nxc3 21. Bd6 Qxd6 22. Rxc3 Rfc8 23. Rfc1 {½-½ (23) Schroeder,C (2263)-Koslowski,V (2231) FICGS email 2021}) 14. c4 {[%emt 0:05:33]} Ndc5 {[%emt 0:01:42]} 15. Ne5 {[%emt 0:01:57]} Nxd3 {[%emt 0:09:33]} 16. Nxg6 {[%emt 0:00:35]} (16. Qxd3 $14 Rc8 17. Qa3) 16... Nb4 $11 {[%emt 0:06:34] Pair of Knights!} 17. Qa4 {[%emt 0:01:20]} hxg6 {[%emt 0:00:12]} 18. Qxb4 {[%emt 0:00:05]} c5 {[%emt 0:01:22]} 19. Qb7 {[%emt 0:03:49]} Nc3 {[%emt 0:05:45]} 20. cxd5 {[%emt 0:04:58]} Qxd5 {[%emt 0:02:59]} 21. Qb2 {[%emt 0:06:41] Inhibits Ne2+.} Na4 {[%emt 0:06:34]} 22. Qb5 {[%emt 0:02:02]} Nc3 {[%emt 0:00:47][%csl LRa2,LRb5]} 23. Qb2 {[%emt 0:00:17]} Ne4 {[%emt 0:08:31]} (23... Na4 $11 24. Qc2 Qc6) 24. Rfd1 {[%emt 0:05:10]} Qf5 {[%emt 0:00:51]} 25. f3 {[%emt 0:05:17]} Nf6 {[%emt 0:00:18]} 26. Bd6 {[%emt 0:00:05] [#] Threatens to win with e4.} Rfc8 {[%emt 0:00:16]} 27. e4 {[%emt 0:00:40]} Qg5 {[%emt 0:00:30]} 28. Qc1 {[%emt 0:01:37]} Qxc1 {[%emt 0:02:53]} 29. Raxc1 {[%emt 0:00:31]} Nd7 $1 {[%emt 0:00:05]} 30. Be7 {[%emt 0:06:14]} Rc7 {[%emt 0:00:07]} 31. Bd6 {[%emt 0:00:03]} (31. h4 $14 {is superior.}) 31... Rc6 {[%emt 0:00:06]} 32. Be7 {[%emt 0:00:05]} Rc7 {[%emt 0:00:04]} 33. Bd6 {[%emt 0:00:06]} Rc6 {[%emt 0:00:04]} 34. Be7 {[%emt 0:00:03] Weighted Error Value: White=0.11 (very precise) /Black=0.09 (flawless)} 1/2-1/2

[Event "Romanian Superleague 2022"]
[Site "Oradea"]
[Date "2022.09.27"]
[Round "7.7"]
[White "Kozak, Adam"]
[Black "Efimenko, Zahar"]
[Result "1/2-1/2"]
[ECO "C24"]
[WhiteElo "2516"]
[BlackElo "2599"]
[Annotator "TA"]
[PlyCount "43"]
[EventDate "2022.09.21"]
[EventType "team-tourn"]
[EventCountry "ROU"]
[SourceTitle "playchess.com"]
[Source "ChessBase"]
[SourceQuality "1"]
[TimeControl "40/5400+30:1800+30"]

{[%evp 10,43,16,23,28,-16,-11,-15,21,33,29,27,16,13,7,11,25,6,4,8,1,0,0,0,0,-8,0,-7,0,0,0,-12,-14,-14,-16,-16]} 1. e4 {[%emt 0:00:33]} e5 {[%emt 0:03:59]} 2. Bc4 {[%emt 0:00:52]} Nf6 {[%emt 0:00:52]} 3. d3 {[%emt 0:00:10]} c6 {[%emt 0:02:59]} 4. Nf3 {[%emt 0:00:50]} d5 {[%emt 0:00:33]} 5. Bb3 {[%emt 0:01:15]} Bd6 {[%emt 0:00:56]} 6. exd5 {[%emt 0:17:00]} Nxd5 {[%emt 0:01:57] C24: Bishop's Opening: 2...Nf6.} 7. Nc3 {[%emt 0:02:01]} Nxc3 {[%emt 0:09:49]} 8. bxc3 {[%emt 0:00:06] [#] Black must now prevent Ng5.} O-O $146 {[%emt 0:00:19]} ({Predecessor:} 8... Bg4 9. h3 Bh5 10. g4 Bg6 11. h4 h5 12. Ng5 Nd7 13. gxh5 Bxh5 14. Qxh5 Rxh5 15. Bxf7+ {0-1 (29) De Jager,J-Van der Weij,A (2305) Dieren 1991}) 9. Ng5 {[%emt 0:06:14] Threatens to win with Qh5.} h6 {[%emt 0:03:27]} 10. Ne4 {[%emt 0:00:55] And now Qh5 would win.} Bf5 {[%emt 0:00:58]} 11. Qf3 {[%emt 0:15:00]} Bxe4 {[%emt 0:02:58]} 12. Qxe4 {[%emt 0:00:09][%cal Oc1h6]} Qf6 {[%emt 0:06:05]} 13. O-O {[%emt 0:04:01]} Nd7 {[%emt 0:02:13] The position is equal.} 14. Be3 {[%emt 0:00:49]} Nc5 {[%emt 0:05:14]} 15. Bxc5 {[%emt 0:15:15]} Bxc5 {[%emt 0:00:17]} 16. Rae1 {[%emt 0:00:20]} Rae8 {[%emt 0:03:36]} 17. g3 {[%emt 0:03:20]} Re7 {[%emt 0:03:17]} 18. Kg2 {[%emt 0:01:57]} Rfe8 {[%emt 0:07:55][%cal Oc5d4]} 19. Qg4 {[%emt 0:08:53]} Bd6 {[%emt 0:14:30]} 20. h4 {[%emt 0:03:22]} Kh7 {[%emt 0:01:33]} 21. Re3 {[%emt 0:06:59]} Qg6 {[%emt 0:00:59]} 22. Qxg6+ {[%emt 0:00:22] An even fight not without its subleties.  Weighted Error Value: White=0.07 (flawless) /Black=0.05 (flawless)} 1/2-1/2